fUSD/lending_fUSD_20241122
["ID","MTS","AMOUNT","RATE_DAILY","PERIOD"]
[343053969,1732314635693,-568.76,0.00094999,120]
[343053971,1732314635702,-568.76,0.00094999,120]
[343053973,1732314635712,-568.76,0.00094999,120]
[343053974,1732314635722,-568.76,0.00094999,120]
[343053975,1732314635734,-568.76,0.00094999,120]
[343053976,1732314635743,-568.76,0.00094999,120]
[343053977,1732314635752,-568.76,0.00094999,120]
[343053978,1732314635761,-568.76,0.00094999,120]
[343053979,1732314635769,-568.76,0.00094999,120]
[343053980,1732314635778,-568.76,0.00094999,120]
[343053981,1732314635787,-568.76,0.00094999,120]
[343053982,1732314635795,-500.0,0.00094999,120]
[343053983,1732314635804,-500.0,0.00094999,120]
[343053984,1732314635813,-500.0,0.00094999,120]
[343053985,1732314635822,-500.0,0.00094999,120]
[343053986,1732314635830,-500.0,0.00094999,120]
[343053987,1732314635839,-500.0,0.00094999,120]
[343053989,1732314635848,-500.0,0.00094999,120]
[343053990,1732314635857,-500.0,0.00094999,120]
[343053992,1732314635867,-500.0,0.00094999,120]
[343053993,1732314635876,-500.0,0.00094999,120]
[343053995,1732314635885,-500.0,0.00094999,120]
[343053997,1732314635894,-440.11629483,0.00094999,120]
[343053999,1732314635904,-500.0,0.00094999,120]
[343054001,1732314635914,-500.0,0.00094999,120]
[343054003,1732314635923,-500.0,0.00094999,120]
[343054005,1732314635932,-500.0,0.00094999,120]
[343054007,1732314635942,-500.0,0.00094999,120]
[343054010,1732314635952,-500.0,0.00094999,120]
[343054011,1732314635963,-500.0,0.00094999,120]
[343054014,1732314635972,-500.0,0.00094999,120]
[343054016,1732314635982,-500.0,0.00094999,120]
[343054018,1732314635992,-500.0,0.00094999,120]
[343054019,1732314636001,-500.0,0.00094999,120]
[343054021,1732314636011,-500.0,0.00094999,120]
[343054023,1732314636020,-500.0,0.00094999,120]
[343054025,1732314636030,-344.644003,0.00094999,120]
[343054027,1732314636039,-500.0,0.00094999,120]
[343054029,1732314636049,-500.0,0.00094999,120]
[343054031,1732314636058,-500.0,0.00094999,120]
[343054033,1732314636067,-500.0,0.00094999,120]
[343054035,1732314636076,-500.0,0.00094999,120]
[343054037,1732314636086,-500.0,0.00094999,120]
[343054039,1732314636095,-500.0,0.00094999,120]
[343054041,1732314636104,-500.0,0.00094999,120]
[343054043,1732314636114,-500.0,0.00094999,120]
[343054045,1732314636123,-500.0,0.00094999,120]
[343054047,1732314636133,-500.0,0.00094999,120]
[343054049,1732314636142,-267.85,0.00094999,120]
[343054051,1732314636151,-500.0,0.00094999,120]
[343054053,1732314636160,-500.0,0.00094999,120]
[343054055,1732314636169,-500.0,0.00094999,120]
[343054057,1732314636178,-500.0,0.00094999,120]
[343054059,1732314636188,-500.0,0.00094999,120]
[343054061,1732314636197,-534.66,0.00094999,120]
[343054063,1732314636206,-500.0,0.00094999,120]
[343054065,1732314636216,-500.0,0.00094999,120]
[343054067,1732314636225,-500.0,0.00094999,120]
[343054070,1732314636234,-500.0,0.00094999,120]
[343054072,1732314636243,-500.0,0.00094999,120]
[343054074,1732314636253,-500.0,0.00094999,120]
[343054076,1732314636262,-395.27014558,0.00094999,120]
[343054078,1732314636271,-500.0,0.00094999,120]
[343054080,1732314636281,-500.0,0.00094999,120]
[343054082,1732314636290,-500.0,0.00094999,120]
[343054084,1732314636300,-500.0,0.00094999,120]
[343054086,1732314636311,-500.0,0.00094999,120]
[343054088,1732314636320,-500.0,0.00094999,120]
[343054090,1732314636329,-500.0,0.00094999,120]
[343054092,1732314636339,-500.0,0.00094999,120]
[343054094,1732314636348,-500.0,0.00094999,120]
[343054096,1732314636357,-500.0,0.00094999,120]
[343054098,1732314636367,-500.0,0.00094999,120]
[343054100,1732314636376,-500.0,0.00094999,120]
[343054102,1732314636386,-500.0,0.00094999,120]
[343054104,1732314636395,-179.05,0.00094999,120]
[343054106,1732314636404,-846.88,0.00094999,120]
[343054108,1732314636413,-846.88,0.00094999,120]
[343054109,1732314636423,-846.88,0.00094999,120]
[343054112,1732314636432,-846.88,0.00094999,120]
[343054114,1732314636442,-846.88,0.00094999,120]
[343054116,1732314636453,-846.88,0.00094999,120]
[343054118,1732314636464,-846.88,0.00094999,120]
[343054120,1732314636478,-846.88,0.00094999,120]
[343054122,1732314636488,-846.88,0.00094999,120]
[343054124,1732314636497,-846.88,0.00094999,120]
[343054126,1732314636508,-846.88,0.00094999,120]
[343054128,1732314636517,-846.88,0.00094999,120]
[343054130,1732314636527,-846.88,0.00094999,120]
[343054132,1732314636536,-846.88,0.00094999,120]
[343054134,1732314636546,-846.88,0.00094999,120]
[343054136,1732314636556,-846.88,0.00094999,120]
[343054138,1732314636565,-846.88,0.00094999,120]
[343054140,1732314636575,-846.88,0.00094999,120]
[343054142,1732314636585,-846.88358789,0.00094999,120]
[343054144,1732314636594,-500.0,0.00094999,120]
[343054146,1732314636604,-500.0,0.00094999,120]
[343054148,1732314636613,-500.0,0.00094999,120]
[343054150,1732314636623,-500.0,0.00094999,120]
[343054152,1732314636633,-500.0,0.00094999,120]
[343054154,1732314636642,-500.0,0.00094999,120]
[343054156,1732314636651,-324.67738367,0.00094999,120]
[343054158,1732314636662,-500.0,0.00094999,2]
[343054160,1732314636671,-500.0,0.00094999,2]
[343054162,1732314636681,-419.04,0.00094999,2]
[343054164,1732314636690,-98332.38362842,0.00095,93]
[343054167,1732314636712,-303.38950875,0.00095,93]
[343054171,1732314636748,-500.0,0.00079452,120]
[343054173,1732314636758,-6577.38677632,0.0009209,120]
[343054176,1732314636770,-7083.61322368,0.0009209,120]
[343054178,1732314636779,-501.71855878,0.00093999,120]
[343054179,1732314636788,-1364.22686283,0.00095,93]
[343054181,1732314636798,-37614.91703894,0.00095,61]
[343054184,1732314636807,-4879.25230296,0.00095,120]
[343054186,1732314636817,-38073.76752719,0.00095,120]
[343054284,1732314637820,-519.07501138,0.00079452,120]
[343054286,1732314637829,-500.0,0.00088586,120]
[343054288,1732314637840,-500.0,0.00088684,120]
[343054290,1732314637850,-500.0,0.00092999,120]
[343054292,1732314637859,-1768.17312905,0.00095,120]
[343054339,1732314638432,-175.79585922,0.00079452,120]
[343054435,1732314639983,-324.20414078,0.00079452,120]
[343054436,1732314639994,-500.0,0.0008753,120]
[343054437,1732314640004,-500.0,0.00088857,120]
[343054438,1732314640014,-567.042237,0.00089998,120]
[343054439,1732314640023,-500.0,0.00092904,120]
[343054440,1732314640033,-500.0,0.00092999,120]
[343054441,1732314640043,-501.6127443,0.00093999,120]
[343054442,1732314640052,-500.0,0.00093999,120]
[343054443,1732314640062,-27994.09382964,0.00095,120]
[343054444,1732314640075,-75538.90489505,0.00095,120]
[343054445,1732314640089,-25288.53195456,0.00095,120]
[343054446,1732314640099,-394.839027,0.00095,120]
[343054447,1732314640111,-17437.90036868,0.00095,120]
[343054448,1732314640124,-10142.8895,0.00095,120]
[343054449,1732314640135,-41354.6812,0.00095,120]
[343054450,1732314640146,-2962.10297795,0.00095,120]
[343054454,1732314642775,-500.0,0.0008753,120]
[343054456,1732314642785,-252.74994935,0.0008753,120]
[343054459,1732314642797,-247.25005065,0.0008753,120]
[343054461,1732314642807,-512.14,0.00088586,2]
[343054463,1732314642816,-500.0,0.00089998,120]
[343054465,1732314642826,-500.0,0.00091999,120]
[343054466,1732314642835,-536.04046741,0.0009209,120]
[343054469,1732314642847,-544.39199998,0.0009209,120]
[343054479,1732314643534,-914.56753261,0.0009209,120]
[343054480,1732314643544,-500.0,0.00092999,120]
[343054481,1732314643554,-500.0,0.00092999,120]
[343054482,1732314643563,-500.0,0.00093999,120]
[343054483,1732314643573,-500.0,0.00093999,120]
[343054484,1732314643581,-68.02726138,0.00095,120]
[343054485,1732314643592,-6392.14773473,0.00095,120]
[343054486,1732314643604,-371.57868135,0.00095,120]
[343054487,1732314643615,-4563.17033848,0.00095,120]
[343054488,1732314643627,-18588.58662369,0.00095,120]
[343054489,1732314643643,-3258.1673723,0.00095,120]
[343054493,1732314645934,-500.0,0.0008753,120]
[343054494,1732314645944,-500.0,0.00091999,120]
[343054495,1732314645954,-500.0,0.00092999,120]
[343054496,1732314645964,-500.0,0.00092999,120]
[343054497,1732314645975,-198.42788833,0.00093999,120]
[343054498,1732314645985,-500.0,0.00093999,120]
[343054499,1732314645995,-500.0,0.00093999,120]
[343054500,1732314646005,-1301.926956,0.000949,2]
[343054501,1732314646015,-595.5,0.0009499,10]
[343054502,1732314646024,-41391.20084849,0.00095,120]
[343054503,1732314646116,-500.0,0.0008753,120]
[343054504,1732314646125,-51328.384,0.00095,120]
[343054505,1732314646240,-1651.19580002,0.00095,120]
[343054511,1732314710087,500.0,0.0005,120]
[343054513,1732314855974,250.0,0.00031,2]
[343054514,1732314857062,300.0,0.00033,2]
[343054515,1732314858157,350.0,0.00035,2]
[343054516,1732314861446,400.0,0.00037,2]
[343054517,1732314862846,450.0,0.00039,2]
[343054518,1732314863919,500.0,0.00041,2]
[343054519,1732314864990,550.0,0.00043,2]
[343054520,1732314866105,600.0,0.00045,2]
[343054522,1732315647130,-153.0,0.00054795,90]
[343054523,1732315647153,-896.0,0.00054795,120]
[343054524,1732315647176,-568.1633013,0.00058,120]
[343054525,1732315647199,-450.0,0.00062,120]
[343054526,1732315647222,-350.0,0.00066,120]
[343054527,1732315647249,-250.0,0.0007,120]
[343054528,1732315647274,-153.465,0.000778,120]
[343054529,1732315647302,-500.0,0.00079452,120]
[343054530,1732315647326,-151.50537375,0.00079452,120]
[343054531,1732315647349,-500.0,0.00079452,120]
[343054532,1732315647371,-500.0,0.00079452,120]
[343054533,1732315647393,-256.89390629,0.00079452,120]
[343054534,1732315647416,-608.79,0.00079452,120]
[343054535,1732315647437,-500.0,0.00079452,120]
[343054536,1732315647458,-211.91127465,0.00079452,120]
[343054537,1732315647479,-372.63449959,0.00079452,120]
[343054538,1732315653101,-127.36550041,0.00079452,120]
[343054539,1732315653124,-500.0,0.00079452,120]
[343054540,1732315653146,-391.36,0.00079452,120]
[343054541,1732315653169,-105.4863951,0.00079452,120]
[343054558,1732315762128,-300.56045754,0.00079352,2]
[343054559,1732315762149,-394.5136049,0.00079452,120]
[343054560,1732315762172,-435.06072269,0.00079452,120]
[343054561,1732315762195,-500.0,0.00079452,120]
[343054562,1732315762217,-500.0,0.00079452,120]
[343054563,1732315762237,-303.3388663,0.00079452,120]
[343054564,1732315762258,-348.74,0.00079452,120]
[343054565,1732315762279,-500.0,0.00079452,120]
[343054566,1732315762300,-500.0,0.00079452,120]
[343054567,1732315762321,-500.0,0.00079452,120]
[343054568,1732315762342,-256.92,0.00079452,120]
[343054569,1732315762364,-500.0,0.00079452,120]
[343054570,1732315762384,-500.0,0.00079452,120]
[343054571,1732315762403,-174.02457337,0.00079452,120]
[343054572,1732315762426,-500.0,0.00079452,120]
[343054573,1732315762446,-500.0,0.00079452,120]
[343054574,1732315762466,-500.0,0.00079452,120]
[343054575,1732315762487,-500.0,0.00079452,120]
[343054576,1732315762506,-500.0,0.00079452,120]
[343054577,1732315762528,-500.0,0.00079452,120]
[343054578,1732315762548,-500.0,0.00079452,120]
[343054579,1732315762568,-500.0,0.00079452,120]
[343054580,1732315762587,-500.0,0.00079452,120]
[343054581,1732315762608,-500.0,0.00079452,120]
[343054582,1732315762628,-500.0,0.00079452,120]
[343054583,1732315762649,-500.0,0.00079452,120]
[343054584,1732315762672,-500.0,0.00079452,120]
[343054585,1732315762693,-500.0,0.00079452,120]
[343054586,1732315762713,-500.0,0.00079452,120]
[343054587,1732315762732,-500.0,0.00079452,120]
[343054588,1732315762753,-500.0,0.00079452,120]
[343054589,1732315762774,-500.0,0.00079452,120]
[343054590,1732315762794,-500.0,0.00079452,120]
[343054591,1732315762815,-513.69879596,0.00079452,120]
[343054592,1732315762840,-500.0,0.00079452,120]
[343054593,1732315762860,-500.0,0.00079452,120]
[343054594,1732315762881,-500.0,0.00079452,120]
[343054595,1732315762903,-605.5241229,0.00079452,120]
[343054596,1732315762926,-500.0,0.00079452,120]
[343054597,1732315762946,-500.0,0.00079452,120]
[343054598,1732315762967,-500.0,0.00079452,120]
[343054599,1732315762989,-499.62610775,0.00079452,120]
[343054600,1732315767143,-0.37389225,0.00079452,120]
[343054601,1732315767163,-500.0,0.00079452,120]
[343054602,1732315767288,-500.0,0.00079452,120]
[343054603,1732315767310,-500.0,0.00079452,120]
[343054604,1732315767332,-500.0,0.00079452,120]
[343054605,1732315767353,-500.0,0.00079452,120]
[343054606,1732315767373,-500.0,0.00079452,120]
[343054607,1732315767394,-500.0,0.00079452,120]
[343054608,1732315767413,-581.8975599,0.00079452,120]
[343054609,1732315767435,-500.0,0.00079452,120]
[343054610,1732315767456,-500.0,0.00079452,120]
[343054611,1732315767476,-500.0,0.00079452,120]
[343054612,1732315767497,-500.0,0.00079452,120]
[343054613,1732315767517,-500.0,0.00079452,60]
[343054614,1732315767537,-500.0,0.00079452,120]
[343054615,1732315767558,-500.0,0.00079452,120]
[343054616,1732315767579,-534.24375817,0.00079452,20]
[343054617,1732315767600,-500.0,0.00079452,120]
[343054618,1732315767621,-500.0,0.00079452,120]
[343054619,1732315767642,-501.56845626,0.00079452,120]
[343054620,1732315767664,-500.0,0.00079452,120]
[343054621,1732315767687,-500.0,0.00079452,120]
[343054622,1732315767708,-504.07,0.00079452,120]
[343054623,1732315767728,-500.0,0.00079452,120]
[343054624,1732315767749,-500.0,0.00079452,120]
[343054625,1732315767770,-500.0,0.00079452,60]
[343054626,1732315767791,-500.0,0.00079452,120]
[343054627,1732315767812,-500.0,0.00079452,120]
[343054628,1732315767836,-500.0,0.00079452,120]
[343054629,1732315767857,-500.0,0.00079452,120]
[343054630,1732315767880,-500.0,0.00079452,120]
[343054631,1732315767901,-600.0,0.00079452,120]
[343054632,1732315767925,-500.0,0.00079452,120]
[343054633,1732315767946,-304.07809215,0.00079452,120]
[343054634,1732315767967,-501.7227316,0.00079452,120]
[343054635,1732315767987,-500.0,0.00079452,120]
[343054636,1732315768008,-627.18971332,0.00079452,120]
[343054637,1732315768029,-500.0,0.00079452,120]
[343054638,1732315768051,-500.0,0.00079452,120]
[343054639,1732315768072,-500.0,0.00079452,120]
[343054640,1732315768093,-500.0,0.00079452,120]
[343054641,1732315768114,-501.55705613,0.00079452,120]
[343054642,1732315768136,-500.0,0.00079452,120]
[343054643,1732315768158,-500.0,0.00079452,120]
[343054644,1732315768181,-500.0,0.00079452,120]
[343054645,1732315768200,-453.45338689,0.00079452,120]
[343054646,1732315768220,-500.0,0.00079452,120]
[343054647,1732315768241,-500.0,0.00079452,120]
[343054648,1732315768263,-500.0,0.00079452,120]
[343054649,1732315768283,-500.0,0.00079452,120]
[343054650,1732315768304,-500.0,0.00079452,120]
[343054651,1732315768325,-19321.5206621,0.00079452,60]
[343054652,1732315769129,-3700.9593379,0.00079452,60]
[343054653,1732315769151,-2540.7194621,0.00079452,2]
[343054661,1732315832018,-673.2805379,0.00079452,2]
[343054662,1732315832028,-248.33876368,0.00079452,120]
[343054663,1732315832038,-864.29,0.00079452,120]
[343054664,1732315832047,-543.85,0.00079452,120]
[343054665,1732315832057,-500.0,0.00079452,120]
[343054666,1732315832066,-500.0,0.00079452,120]
[343054667,1732315832076,-593.4246575,0.0008,120]
[343054668,1732315832085,-266.31604092,0.0008,120]
[343054669,1732315832097,-9836.94992478,0.0008,120]
[343054670,1732315832108,-3876.83261,0.0008,120]
[343054671,1732315832142,-7855.9014243,0.0008,120]
[343054672,1732315832152,-152.0,0.00080448,3]
[343054673,1732315832161,-153.5,0.000824,120]
[343054674,1732315832170,-500.0,0.00083424,120]
[343054675,1732315832180,-283.26,0.00083886,4]
[343054676,1732315832189,-275.32,0.00084281,2]
[343054677,1732315832199,-200.0,0.00084948,30]
[343054678,1732315832208,-170.41,0.00085002,120]
[343054679,1732315832220,-5160.5,0.00085002,30]
[343054680,1732315832230,-179.46,0.00085096,30]
[343054681,1732315832239,-248.0,0.00085162,120]
[343054682,1732315832248,-150.62,0.00085269,120]
[343054683,1732315832258,-250.0,0.00085515,120]
[343054684,1732315832267,-571.0,0.00085518,120]
[343054685,1732315832277,-1000.0,0.00085551,120]
[343054686,1732315832287,-250.0,0.00085652,120]
[343054687,1732315832296,-1067.31,0.00085783,120]
[343054688,1732315832305,-250.0,0.00085855,120]
[343054689,1732315832314,-250.0,0.00085977,120]
[343054690,1732315832323,-218.05,0.00086012,120]
[343054691,1732315832333,-275.32,0.00086545,2]
[343054692,1732315832342,-4253.0,0.00086881,117]
[343054693,1732315832351,-153.587,0.00087,120]
[343054694,1732315832360,-283.26,0.00087197,4]
[343054695,1732315832370,-600.451,0.0008753,120]
[343054696,1732315832379,-1972.7393,0.0008773,120]
[343054697,1732315832388,-263.441,0.0008773,60]
[343054698,1732315832398,-715.0,0.000886,12]
[343054699,1732315832409,-500.0,0.00088686,120]
[343054700,1732315832420,-432.92301899,0.00088686,120]
[343054701,1732315832431,-500.0,0.00088686,120]
[343054702,1732315832441,-502.28016025,0.00088686,120]
[343054703,1732315832451,-1000.0,0.000887,30]
[343054704,1732315832461,-3489.66976656,0.000887,15]
[343054705,1732315832473,-150.72043156,0.000887,28]
[343054706,1732315832483,-2500.0,0.000887,30]
[343054707,1732315832492,-12431.5484372,0.0008879,10]
[343054708,1732315832501,-695.96,0.0008879,120]
[343054709,1732315832511,-500.0,0.00088799,120]
[343054710,1732315832520,-500.0,0.00088799,120]
[343054711,1732315832529,-500.0,0.00088799,120]
[343054712,1732315832539,-500.0,0.00088799,120]
[343054713,1732315832548,-500.0,0.00088799,120]
[343054714,1732315832557,-500.0,0.00088799,120]
[343054715,1732315832567,-500.0,0.00088799,120]
[343054716,1732315832576,-500.0,0.00088799,120]
[343054717,1732315832586,-500.0,0.00088799,120]
[343054718,1732315832595,-500.0,0.00088799,120]
[343054719,1732315832605,-346.31332938,0.00088799,120]
[343054720,1732315832614,-500.0,0.00088799,120]
[343054721,1732315832624,-500.0,0.00088799,120]
[343054722,1732315832633,-500.0,0.00088799,120]
[343054723,1732315832645,-500.0,0.00088799,120]
[343054724,1732315832655,-500.0,0.00088799,120]
[343054725,1732315832667,-500.0,0.00088799,120]
[343054726,1732315832680,-500.0,0.00088799,120]
[343054727,1732315832691,-1000.0,0.00088799,120]
[343054728,1732315832703,-336.7426844,0.00088799,120]
[343054729,1732315832714,-500.0,0.00088799,120]
[343054730,1732315832725,-500.0,0.00088799,120]
[343054731,1732315832735,-500.0,0.00088799,120]
[343054732,1732315832746,-500.0,0.00088799,120]
[343054733,1732315832758,-500.0,0.00088799,120]
[343054734,1732315832770,-500.0,0.00088799,120]
[343054735,1732315832782,-500.0,0.00088799,120]
[343054736,1732315832794,-500.0,0.00088799,120]
[343054737,1732315832805,-500.0,0.00088799,120]
[343054738,1732315832816,-988.41,0.00088799,120]
[343054739,1732315832828,-500.0,0.00088799,120]
[343054740,1732315832839,-500.0,0.00088799,120]
[343054741,1732315832851,-362.7798878,0.00088799,120]
[343054742,1732315832865,-500.0,0.00088799,120]
[343054743,1732315832876,-500.0,0.00088799,120]
[343054744,1732315832887,-1500.0,0.00088799,120]
[343054745,1732315832898,-500.0,0.00088799,120]
[343054746,1732315832909,-500.0,0.00088799,120]
[343054747,1732315832919,-500.0,0.00088799,120]
[343054748,1732315832930,-500.0,0.00088799,120]
[343054749,1732315832942,-544.51044523,0.00088799,120]
[343054750,1732315832953,-500.0,0.00088799,120]
[343054751,1732315832965,-500.0,0.00088799,120]
[343054752,1732315832976,-500.0,0.00088799,120]
[343054753,1732315832987,-500.0,0.00088799,120]
[343054754,1732315832998,-500.0,0.00088799,120]
[343054755,1732315833009,-516.93,0.00088799,120]
[343054756,1732315833020,-500.0,0.00088799,120]
[343054757,1732315833032,-500.0,0.00088799,120]
[343054758,1732315833043,-500.0,0.00088799,120]
[343054759,1732315833054,-500.0,0.00088799,120]
[343054760,1732315833066,-500.0,0.00088799,120]
[343054761,1732315833078,-500.0,0.00088799,120]
[343054762,1732315833089,-500.0,0.00088799,120]
[343054763,1732315833101,-500.0,0.00088799,120]
[343054764,1732315833111,-500.0,0.00088799,120]
[343054765,1732315833122,-500.0,0.00088799,120]
[343054766,1732315833135,-52725.14837863,0.000888,120]
[343054767,1732315833150,-548.10548649,0.000888,120]
[343054768,1732315836149,-500.0,0.00088773,2]
[343054769,1732315836159,-73.125,0.000888,120]
[343054770,1732315836171,-8705.0,0.000888,120]
[343054771,1732315836182,-2249.0,0.000888,120]
[343054772,1732315836193,-4132.97614764,0.000888,120]
[343054773,1732315836206,-4132.41519528,0.000888,120]
[343054774,1732315836285,-982.84,0.000888,120]
[343054777,1732315836297,-364.023,0.000888,120]
[343054779,1732315836309,-1969.26,0.000888,120]
[343054784,1732315836368,-13857.34464702,0.000888,120]
[343054786,1732315836379,-283.06794255,0.000888,120]
[343054791,1732315838024,-500.0,0.00088799,120]
[343054792,1732315838033,-2086.30599731,0.000888,120]
[343054793,1732315838044,-2850.26475934,0.000888,120]
[343054822,1732315838919,-1403.92796875,0.000888,120]
[343054824,1732315838930,-8810.53631634,0.000888,120]
[343054825,1732315838943,-346.31332938,0.000888,120]
[343054826,1732315838956,-54589.64099373,0.000888,120]
[343054827,1732315838966,-7249.70016778,0.000888,30]
[343054828,1732315838976,-275.32,0.00088809,2]
[343054829,1732315838986,-505.92601527,0.00088857,120]
[343054830,1732315838995,-302.65218098,0.00088857,120]
[343054831,1732315839005,-500.0,0.00088857,120]
[343054832,1732315839014,-500.0,0.00088857,120]
[343054833,1732315839024,-490.111315,0.00088857,120]
[343054834,1732315839033,-500.0,0.00088857,120]
[343054835,1732315839042,-500.0,0.00088857,120]
[343054836,1732315839051,-500.0,0.00088857,120]
[343054837,1732315839061,-500.0,0.00088857,120]
[343054838,1732315839071,-591.93,0.00088857,120]
[343054839,1732315839081,-500.0,0.00088857,120]
[343054840,1732315839090,-500.0,0.00088857,120]
[343054841,1732315839099,-496.93214,0.00088857,120]
[343054842,1732315839108,-500.0,0.00088857,120]
[343054843,1732315839118,-500.0,0.00088857,120]
[343054844,1732315839129,-500.0,0.00088857,120]
[343054845,1732315839140,-500.0,0.00088857,120]
[343054846,1732315839150,-500.0,0.00088857,120]
[343054847,1732315839160,-864.29,0.00088857,120]
[343054848,1732315839169,-500.0,0.00088857,120]
[343054849,1732315839179,-166.43103685,0.00089,20]
[343054850,1732315839188,-1000.0,0.00089322,30]
[343054851,1732315839197,-465.8497,0.0008989,120]
[343054852,1732315839207,-949.11722444,0.000899,61]
[343054853,1732315839216,-572.0,0.000899,107]
[343054854,1732315839229,-317.06246572,0.000899,2]
[343054855,1732315839238,-157.21830927,0.000899,120]
[343054856,1732315839247,-12431.5484372,0.00089942,11]
[343054857,1732315839257,-3489.66976649,0.00089944,15]
[343054858,1732315839266,-24863.0968743,0.0008998,11]
[343054859,1732315839276,-49726.1937487,0.0008999,11]
[343054860,1732315839285,-500.0,0.00089998,120]
[343054861,1732315839295,-500.0,0.00089998,120]
[343054862,1732315839305,-585.57181521,0.00089998,120]
[343054863,1732315839315,-500.0,0.00089998,120]
[343054864,1732315839324,-500.0,0.00089998,120]
[343054865,1732315839334,-500.0,0.00089998,120]
[343054866,1732315839440,-535.61,0.00089998,120]
[343054867,1732315839450,-500.0,0.00089998,120]
[343054868,1732315839459,-500.0,0.00089998,120]
[343054869,1732315839469,-500.0,0.00089998,120]
[343054870,1732315839480,-500.0,0.00089998,120]
[343054871,1732315839490,-500.0,0.00089998,120]
[343054872,1732315839499,-500.0,0.00089998,120]
[343054873,1732315839509,-500.0,0.00089998,120]
[343054874,1732315839518,-500.0,0.00089998,120]
[343054875,1732315839528,-157.52190011,0.00089998,120]
[343054876,1732315839537,-500.0,0.00089998,120]
[343054877,1732315839548,-500.0,0.00089998,120]
[343054878,1732315839558,-500.0,0.00089998,120]
[343054879,1732315839567,-500.0,0.00089998,120]
[343054880,1732315839577,-500.0,0.00089998,120]
[343054881,1732315839586,-500.0,0.00089998,120]
[343054882,1732315839595,-500.0,0.00089998,120]
[343054883,1732315839605,-500.0,0.00089998,120]
[343054884,1732315839614,-500.0,0.00089998,120]
[343054885,1732315839623,-500.52949586,0.00089998,120]
[343054886,1732315839633,-500.0,0.00089998,120]
[343054887,1732315839643,-500.0,0.00089998,120]
[343054888,1732315839653,-500.0,0.00089998,120]
[343054889,1732315839663,-500.0,0.00089998,120]
[343054890,1732315839672,-500.0,0.00089998,120]
[343054891,1732315839682,-500.93241199,0.00089998,120]
[343054892,1732315839691,-500.0,0.00089998,120]
[343054893,1732315839701,-501.4091194,0.00089998,120]
[343054894,1732315839710,-500.0,0.00089998,120]
[343054895,1732315839720,-600.78,0.00089998,120]
[343054896,1732315839729,-500.0,0.00089998,120]
[343054897,1732315839739,-500.0,0.00089998,120]
[343054898,1732315839749,-520.6,0.00089998,120]
[343054899,1732315839758,-236.02,0.00089998,120]
[343054900,1732315839768,-500.0,0.00089998,120]
[343054901,1732315839778,-500.0,0.00089998,120]
[343054902,1732315839787,-500.0,0.00089998,120]
[343054903,1732315839797,-500.0,0.00089999,120]
[343054904,1732315839807,-500.0,0.00089999,120]
[343054905,1732315839816,-500.0,0.00089999,120]
[343054906,1732315839826,-500.0,0.00089999,120]
[343054907,1732315839836,-500.0,0.00089999,120]